[Event "*** SCC Grand Prix: Titled Tuesday Blitz"]
[Site "Chess.com"]
[Date "2020.07.14"]
[Round "1"]
[White "louis198"]
[Black "queen_iryna"]
[Result "1-0"]
[WhiteElo "2571"]
[BlackElo "2244"]
[TimeControl "180+1"]
[EndTime "10:04:01 PDT"]
[Termination "louis198 won by resignation"]

1. d4 {[%clk 0:03:00.9]} 1... d5 {[%clk 0:02:57.5]} 2. c4 {[%clk 0:03:00.5]}
2... c6 {[%clk 0:02:55]} 3. Nc3 {[%clk 0:03:00.4]} 3... Nf6 {[%clk 0:02:54.6]}
4. Nf3 {[%clk 0:02:59.3]} 4... e6 {[%clk 0:02:53]} 5. Bg5 {[%clk 0:02:58.2]}
5... h6 {[%clk 0:02:50.8]} 6. Bxf6 {[%clk 0:02:50.8]} 6... Qxf6 {[%clk
0:02:51.7]} 7. e3 {[%clk 0:02:51.2]} 7... Qd8 {[%clk 0:02:49.5]} 8. Qc2 {[%clk
0:02:44.9]} 8... Be7 {[%clk 0:02:49]} 9. cxd5 {[%clk 0:02:41.5]} 9... exd5
{[%clk 0:02:44.3]} 10. Bd3 {[%clk 0:02:42.4]} 10... Nd7 {[%clk 0:02:42.1]} 11.
O-O {[%clk 0:02:41.3]} 11... Nf6 {[%clk 0:02:41]} 12. Ne5 {[%clk 0:02:37.8]}
12... O-O {[%clk 0:02:40]} 13. h3 {[%clk 0:02:22]} 13... Be6 {[%clk 0:02:24.5]}
14. Rab1 {[%clk 0:02:20.6]} 14... Bd6 {[%clk 0:02:09.3]} 15. b4 {[%clk 0:02:14]}
15... Nd7 {[%clk 0:01:56.1]} 16. f4 {[%clk 0:02:11]} 16... f6 {[%clk 0:01:49.4]}
17. Bh7+ {[%clk 0:02:09.8]} 17... Kh8 {[%clk 0:01:38.5]} 18. Ng6+ {[%clk
0:02:09.9]} 18... Kxh7 {[%clk 0:01:35.3]} 19. Nxf8+ {[%clk 0:02:10.8]} 19... Kg8
{[%clk 0:01:35.3]} 20. Nxe6 {[%clk 0:02:11]} 20... Qe7 {[%clk 0:01:35.5]} 21. f5
{[%clk 0:02:08.6]} 21... Nf8 {[%clk 0:01:30.3]} 22. b5 {[%clk 0:02:03.5]} 22...
Nxe6 {[%clk 0:01:29.1]} 23. fxe6 {[%clk 0:02:04.4]} 23... Qxe6 {[%clk
0:01:29.9]} 24. Rf3 {[%clk 0:02:04.5]} 24... Re8 {[%clk 0:01:25.8]} 25. bxc6
{[%clk 0:02:04]} 25... bxc6 {[%clk 0:01:25.4]} 26. Rb7 {[%clk 0:01:58.3]} 26...
Bb8 {[%clk 0:01:24.6]} 27. Qg6 {[%clk 0:01:56]} 1-0

[Event "*** SCC Grand Prix: Titled Tuesday Blitz"]
[Site "Chess.com"]
[Date "2020.07.14"]
[Round "1"]
[White "velemajstor767276"]
[Black "HarryCun"]
[Result "1-0"]
[WhiteElo "2522"]
[BlackElo "2193"]
[TimeControl "180+1"]
[EndTime "10:04:03 PDT"]
[Termination "velemajstor767276 won by checkmate"]

1. d4 {[%clk 0:02:58.5]} 1... c6 {[%clk 0:03:00.3]} 2. c4 {[%clk 0:02:56.6]}
2... d5 {[%clk 0:03:00.6]} 3. cxd5 {[%clk 0:02:56.7]} 3... cxd5 {[%clk
0:03:01.5]} 4. Bg5 {[%clk 0:02:56.8]} 4... Nf6 {[%clk 0:03:00.2]} 5. Bxf6 {[%clk
0:02:56.9]} 5... gxf6 {[%clk 0:03:01.1]} 6. e3 {[%clk 0:02:57.4]} 6... Nc6
{[%clk 0:03:00.8]} 7. Nc3 {[%clk 0:02:57.4]} 7... Bf5 {[%clk 0:03:00.3]} 8. Bd3
{[%clk 0:02:56.8]} 8... Bxd3 {[%clk 0:02:54]} 9. Qxd3 {[%clk 0:02:57.7]} 9... e6
{[%clk 0:02:54.2]} 10. Nf3 {[%clk 0:02:43.3]} 10... Bd6 {[%clk 0:02:53.5]} 11.
O-O {[%clk 0:02:43.4]} 11... Ke7 {[%clk 0:02:49.5]} 12. e4 {[%clk 0:02:32.1]}
12... dxe4 {[%clk 0:02:44.5]} 13. Qxe4 {[%clk 0:02:31.3]} 13... Nb4 {[%clk
0:02:40.6]} 14. Qxb7+ {[%clk 0:02:18.2]} 14... Qd7 {[%clk 0:02:35.2]} 15. Qe4
{[%clk 0:02:16.8]} 15... Qc6 {[%clk 0:02:29.8]} 16. d5 {[%clk 0:02:10.3]} 16...
Nxd5 {[%clk 0:02:21.5]} 17. Nd4 {[%clk 0:02:10.3]} 17... Qb7 {[%clk 0:02:19.4]}
18. Nf5+ {[%clk 0:02:01.6]} 18... Kd7 {[%clk 0:02:17.4]} 19. Rad1 {[%clk
0:01:51.8]} 19... exf5 {[%clk 0:02:01.9]} 20. Qxf5+ {[%clk 0:01:47.5]} 20... Kc7
{[%clk 0:01:57.3]} 21. Nxd5+ {[%clk 0:01:45]} 21... Kc6 {[%clk 0:01:56.5]} 22.
Rc1+ {[%clk 0:01:14.8]} 22... Kb5 {[%clk 0:01:51.8]} 23. Nc7+ {[%clk 0:01:13.6]}
23... Kb6 {[%clk 0:01:51.2]} 24. Qb5# {[%clk 0:01:12.6]} 1-0

[Event "*** SCC Grand Prix: Titled Tuesday Blitz"]
[Site "Chess.com"]
[Date "2020.07.14"]
[Round "1"]
[White "Kotofeyca"]
[Black "francyIM"]
[Result "0-1"]
[WhiteElo "2320"]
[BlackElo "2640"]
[TimeControl "180+1"]
[EndTime "10:04:14 PDT"]
[Termination "francyIM won by resignation"]

1. d4 {[%clk 0:02:58.9]} 1... Nf6 {[%clk 0:02:44.1]} 2. c4 {[%clk 0:02:57.9]}
2... e6 {[%clk 0:02:42.6]} 3. Nf3 {[%clk 0:02:56.5]} 3... b6 {[%clk 0:02:40.6]}
4. g3 {[%clk 0:02:55.8]} 4... Ba6 {[%clk 0:02:39.9]} 5. Qa4 {[%clk 0:02:54.7]}
5... c6 {[%clk 0:02:38.9]} 6. Nc3 {[%clk 0:02:52.1]} 6... Be7 {[%clk 0:02:39.4]}
7. e4 {[%clk 0:02:50.4]} 7... O-O {[%clk 0:02:38.8]} 8. e5 {[%clk 0:02:49.2]}
8... Ne8 {[%clk 0:02:38.5]} 9. Bf4 {[%clk 0:02:39.7]} 9... Nc7 {[%clk
0:02:37.4]} 10. Bg2 {[%clk 0:02:32.3]} 10... b5 {[%clk 0:02:34.7]} 11. cxb5
{[%clk 0:02:31.8]} 11... Nxb5 {[%clk 0:02:30.1]} 12. Ne4 {[%clk 0:02:16]} 12...
Qb6 {[%clk 0:02:22.7]} 13. Rc1 {[%clk 0:02:10.7]} 13... Nc7 {[%clk 0:02:22]} 14.
Qc2 {[%clk 0:01:59.2]} 14... Nd5 {[%clk 0:02:21.7]} 15. Neg5 {[%clk 0:01:47.3]}
15... g6 {[%clk 0:02:19.1]} 16. Bd2 {[%clk 0:01:32]} 16... Nb4 {[%clk
0:02:15.3]} 17. Bxb4 {[%clk 0:01:23.4]} 17... Bxb4+ {[%clk 0:02:16.2]} 18. Kd1
{[%clk 0:01:22.8]} 18... d5 {[%clk 0:02:16]} 19. exd6 {[%clk 0:01:13.8]} 19...
Bxd6 {[%clk 0:02:14.4]} 20. Ne5 {[%clk 0:01:05.4]} 20... Qxd4+ {[%clk 0:02:13]}
21. Qd2 {[%clk 0:00:49.3]} 21... Qxd2+ {[%clk 0:02:08.8]} 22. Kxd2 {[%clk
0:00:48.8]} 22... Bxe5 {[%clk 0:02:09.7]} 0-1

[Event "*** SCC Grand Prix: Titled Tuesday Blitz"]
[Site "Chess.com"]
[Date "2020.07.14"]
[Round "1"]
[White "GoltsevDmitry2000"]
[Black "Efremov_Vlad"]
[Result "1-0"]
[WhiteElo "2562"]
[BlackElo "2233"]
[TimeControl "180+1"]
[EndTime "10:04:20 PDT"]
[Termination "GoltsevDmitry2000 won by resignation"]

1. e4 {[%clk 0:02:54.2]} 1... c5 {[%clk 0:02:58.7]} 2. Nf3 {[%clk 0:02:54.3]}
2... e6 {[%clk 0:02:59]} 3. d4 {[%clk 0:02:54.8]} 3... cxd4 {[%clk 0:02:59.6]}
4. Nxd4 {[%clk 0:02:55.7]} 4... Nc6 {[%clk 0:03:00.2]} 5. Nc3 {[%clk 0:02:56.2]}
5... Qc7 {[%clk 0:03:00.5]} 6. Be2 {[%clk 0:02:55.6]} 6... Nf6 {[%clk
0:02:58.7]} 7. O-O {[%clk 0:02:55.2]} 7... Be7 {[%clk 0:02:55]} 8. Be3 {[%clk
0:02:55.1]} 8... O-O {[%clk 0:02:47.3]} 9. a3 {[%clk 0:02:54.5]} 9... a6 {[%clk
0:02:44.4]} 10. f4 {[%clk 0:02:51.5]} 10... d6 {[%clk 0:02:44.3]} 11. Bf3 {[%clk
0:02:51.4]} 11... Nxd4 {[%clk 0:02:43.8]} 12. Bxd4 {[%clk 0:02:52.3]} 12... e5
{[%clk 0:02:44.1]} 13. Be3 {[%clk 0:02:52.2]} 13... exf4 {[%clk 0:02:35]} 14.
Bxf4 {[%clk 0:02:53.1]} 14... Qb6+ {[%clk 0:02:21.4]} 15. Kh1 {[%clk 0:02:46.7]}
15... Qxb2 {[%clk 0:02:16.7]} 16. Qd4 {[%clk 0:02:41.1]} 16... Qxc2 {[%clk
0:01:48.8]} 17. Bd1 {[%clk 0:02:00.2]} 17... Qb2 {[%clk 0:01:39.4]} 18. Ra2
{[%clk 0:01:59.7]} 18... Qxa2 {[%clk 0:01:22.1]} 19. Nxa2 {[%clk 0:01:59.5]}
19... Be6 {[%clk 0:01:21.9]} 20. Nb4 {[%clk 0:01:58.2]} 20... Rfd8 {[%clk
0:01:16]} 21. Nd5 {[%clk 0:01:57.6]} 21... Nxd5 {[%clk 0:01:08.3]} 22. exd5
{[%clk 0:01:57.3]} 22... Bf6 {[%clk 0:01:09.1]} 23. Qe4 {[%clk 0:01:53.2]} 23...
Bd7 {[%clk 0:01:06.7]} 24. Bc2 {[%clk 0:01:53]} 24... g5 {[%clk 0:01:03.4]} 25.
Qxh7+ {[%clk 0:01:50.6]} 1-0

[Event "*** SCC Grand Prix: Titled Tuesday Blitz"]
[Site "Chess.com"]
[Date "2020.07.14"]
[Round "1"]
[White "seorobert1971"]
[Black "Batsai"]
[Result "1-0"]
[WhiteElo "2778"]
[BlackElo "2399"]
[TimeControl "180+1"]
[EndTime "10:04:26 PDT"]
[Termination "seorobert1971 won by resignation"]

1. c4 {[%clk 0:03:00.1]} 1... c5 {[%clk 0:02:57]} 2. Nf3 {[%clk 0:02:59.8]} 2...
Nf6 {[%clk 0:02:55.3]} 3. Nc3 {[%clk 0:02:59.9]} 3... e6 {[%clk 0:02:51.1]} 4.
g3 {[%clk 0:02:58.4]} 4... b6 {[%clk 0:02:51.3]} 5. Bg2 {[%clk 0:02:58.6]} 5...
Bb7 {[%clk 0:02:52.2]} 6. O-O {[%clk 0:02:58.3]} 6... Be7 {[%clk 0:02:52.6]} 7.
d4 {[%clk 0:02:56.3]} 7... O-O {[%clk 0:02:52.6]} 8. d5 {[%clk 0:02:55.7]} 8...
exd5 {[%clk 0:02:48.5]} 9. cxd5 {[%clk 0:02:55.7]} 9... d6 {[%clk 0:02:37.8]}
10. e4 {[%clk 0:02:55.1]} 10... a6 {[%clk 0:02:27.8]} 11. a4 {[%clk 0:02:52.3]}
11... Nbd7 {[%clk 0:02:20.5]} 12. Re1 {[%clk 0:02:49.9]} 12... Re8 {[%clk
0:02:16.3]} 13. Nh4 {[%clk 0:02:36.3]} 13... g6 {[%clk 0:02:13.8]} 14. Nf3
{[%clk 0:02:35.1]} 14... Bf8 {[%clk 0:02:03.2]} 15. Bf4 {[%clk 0:02:32.3]} 15...
Nh5 {[%clk 0:02:01.1]} 16. Bg5 {[%clk 0:02:30.9]} 16... Be7 {[%clk 0:01:59]} 17.
Be3 {[%clk 0:02:27.3]} 17... Bf6 {[%clk 0:01:52.8]} 18. Nd2 {[%clk 0:02:26.1]}
18... Ne5 {[%clk 0:01:48.8]} 19. Qe2 {[%clk 0:02:25.3]} 19... Rc8 {[%clk
0:01:46.2]} 20. f4 {[%clk 0:02:24.4]} 20... Nd7 {[%clk 0:01:43.7]} 21. Nc4
{[%clk 0:02:23]} 21... Qc7 {[%clk 0:01:31.6]} 22. Qd2 {[%clk 0:02:15.9]} 22...
Bg7 {[%clk 0:01:24.3]} 23. Bf2 {[%clk 0:02:08]} 23... Nhf6 {[%clk 0:01:20.2]}
24. h3 {[%clk 0:02:06.3]} 24... b5 {[%clk 0:01:00.3]} 25. axb5 {[%clk
0:02:04.9]} 25... axb5 {[%clk 0:01:01.2]} 26. Nxb5 {[%clk 0:02:03.6]} 26... Qb8
{[%clk 0:01:00.2]} 27. Nbxd6 {[%clk 0:02:00.9]} 1-0

[Event "*** SCC Grand Prix: Titled Tuesday Blitz"]
[Site "Chess.com"]
[Date "2020.07.14"]
[Round "1"]
[White "mr65"]
[Black "SARGISMV"]
[Result "0-1"]
[WhiteElo "2094"]
[BlackElo "2484"]
[TimeControl "180+1"]
[EndTime "10:04:27 PDT"]
[Termination "SARGISMV won by resignation"]

1. e4 {[%clk 0:02:56.4]} 1... c5 {[%clk 0:02:58.7]} 2. d4 {[%clk 0:02:55.3]}
2... cxd4 {[%clk 0:02:59.6]} 3. c3 {[%clk 0:02:55.3]} 3... dxc3 {[%clk 0:02:59]}
4. Nxc3 {[%clk 0:02:55.1]} 4... g6 {[%clk 0:02:59.9]} 5. Nf3 {[%clk 0:02:54.6]}
5... Bg7 {[%clk 0:02:59.5]} 6. Bc4 {[%clk 0:02:52.6]} 6... e6 {[%clk 0:02:53.4]}
7. O-O {[%clk 0:02:49.6]} 7... Ne7 {[%clk 0:02:52.7]} 8. Nb5 {[%clk 0:02:28.9]}
8... O-O {[%clk 0:02:50.2]} 9. Nd6 {[%clk 0:02:25.1]} 9... Nbc6 {[%clk
0:02:42.1]} 10. Bf4 {[%clk 0:02:20]} 10... Bxb2 {[%clk 0:02:17.9]} 11. Bh6
{[%clk 0:02:15.5]} 11... Bg7 {[%clk 0:02:15]} 12. Bxg7 {[%clk 0:02:14.6]} 12...
Kxg7 {[%clk 0:02:15.9]} 13. Qd2 {[%clk 0:02:06.6]} 13... f6 {[%clk 0:02:08.6]}
14. Rfd1 {[%clk 0:01:58.5]} 14... Ne5 {[%clk 0:01:56.8]} 15. Nxe5 {[%clk
0:01:56.7]} 15... fxe5 {[%clk 0:01:57.7]} 16. Nxc8 {[%clk 0:01:54.3]} 16... Qxc8
{[%clk 0:01:34.3]} 17. Qxd7 {[%clk 0:01:46.6]} 17... Qxc4 {[%clk 0:01:32.8]} 18.
Qxe7+ {[%clk 0:01:44.8]} 18... Rf7 {[%clk 0:01:31.6]} 19. Qg5 {[%clk 0:01:36.1]}
19... Qxe4 {[%clk 0:01:29.7]} 20. Re1 {[%clk 0:01:16.9]} 20... Qf5 {[%clk
0:01:23.8]} 21. Rxe5 {[%clk 0:01:13.4]} 21... Qxf2+ {[%clk 0:01:22.2]} 0-1

[Event "*** SCC Grand Prix: Titled Tuesday Blitz"]
[Site "Chess.com"]
[Date "2020.07.14"]
[Round "1"]
[White "VladimirBelous"]
[Black "Kostya26"]
[Result "1-0"]
[WhiteElo "2724"]
[BlackElo "2382"]
[TimeControl "180+1"]
[EndTime "10:04:34 PDT"]
[Termination "VladimirBelous won by resignation"]

1. c4 {[%clk 0:02:59.9]} 1... e6 {[%clk 0:02:55.6]} 2. Nf3 {[%clk 0:02:59.2]}
2... d5 {[%clk 0:02:56]} 3. g3 {[%clk 0:02:58.9]} 3... Nf6 {[%clk 0:02:54]} 4.
Bg2 {[%clk 0:02:59.1]} 4... Be7 {[%clk 0:02:52.1]} 5. O-O {[%clk 0:02:59.5]}
5... O-O {[%clk 0:02:52.7]} 6. d4 {[%clk 0:02:59.2]} 6... b6 {[%clk 0:02:52.8]}
7. Nc3 {[%clk 0:02:55.2]} 7... Bb7 {[%clk 0:02:53]} 8. Nd2 {[%clk 0:02:42.9]}
8... Nbd7 {[%clk 0:02:41.7]} 9. e4 {[%clk 0:02:40.1]} 9... dxe4 {[%clk
0:02:41.8]} 10. Ndxe4 {[%clk 0:02:40.1]} 10... Rb8 {[%clk 0:02:39.4]} 11. Qa4
{[%clk 0:02:31.4]} 11... a5 {[%clk 0:02:29.8]} 12. Be3 {[%clk 0:02:21.1]} 12...
Nxe4 {[%clk 0:02:25.4]} 13. Nxe4 {[%clk 0:02:18.8]} 13... Nf6 {[%clk 0:02:24.7]}
14. Nxf6+ {[%clk 0:02:16.6]} 14... Bxf6 {[%clk 0:02:25.6]} 15. Bxb7 {[%clk
0:02:16.5]} 15... Rxb7 {[%clk 0:02:26.5]} 16. Rad1 {[%clk 0:02:06]} 16... Qe8
{[%clk 0:02:17.9]} 17. Qc2 {[%clk 0:02:04.4]} 17... Qd7 {[%clk 0:02:08.9]} 18.
d5 {[%clk 0:01:50.1]} 18... Rbb8 {[%clk 0:02:01.7]} 19. b3 {[%clk 0:01:47.4]}
19... Rfd8 {[%clk 0:01:59.2]} 20. dxe6 {[%clk 0:01:28.4]} 20... Qxe6 {[%clk
0:01:56.2]} 21. Bf4 {[%clk 0:01:28.9]} 21... Qc6 {[%clk 0:01:49]} 22. Qf5 {[%clk
0:01:22]} 22... g6 {[%clk 0:01:37.5]} 23. Qb5 {[%clk 0:01:21.4]} 23... Qb7
{[%clk 0:01:25.4]} 24. Rd7 {[%clk 0:01:19.3]} 24... Rxd7 {[%clk 0:01:21.2]} 25.
Qxd7 {[%clk 0:01:19.4]} 25... c6 {[%clk 0:01:17.6]} 26. Qd6 {[%clk 0:01:16.9]}
1-0

[Event "*** SCC Grand Prix: Titled Tuesday Blitz"]
[Site "Chess.com"]
[Date "2020.07.14"]
[Round "1"]
[White "GameOverBro"]
[Black "Ty3oB"]
[Result "1-0"]
[WhiteElo "2506"]
[BlackElo "2131"]
[TimeControl "180+1"]
[EndTime "10:04:35 PDT"]
[Termination "GameOverBro won by resignation"]

1. e4 {[%clk 0:03:00.9]} 1... e5 {[%clk 0:02:45.2]} 2. Nf3 {[%clk 0:03:00.8]}
2... d6 {[%clk 0:02:44.2]} 3. Nc3 {[%clk 0:02:59.9]} 3... Nf6 {[%clk 0:02:42.3]}
4. Bc4 {[%clk 0:02:59.5]} 4... Be7 {[%clk 0:02:41.4]} 5. d4 {[%clk 0:02:58.5]}
5... exd4 {[%clk 0:02:41.2]} 6. Nxd4 {[%clk 0:02:59.4]} 6... O-O {[%clk
0:02:41.1]} 7. O-O {[%clk 0:02:57.7]} 7... c6 {[%clk 0:02:40.8]} 8. a4 {[%clk
0:02:57.2]} 8... a5 {[%clk 0:02:40.2]} 9. Re1 {[%clk 0:02:56]} 9... Na6 {[%clk
0:02:37.9]} 10. Qf3 {[%clk 0:02:47.2]} 10... Nb4 {[%clk 0:02:11.6]} 11. Bb3
{[%clk 0:02:45]} 11... Re8 {[%clk 0:02:09.4]} 12. Nf5 {[%clk 0:02:42.1]} 12...
Bf8 {[%clk 0:01:33]} 13. Bg5 {[%clk 0:02:38.2]} 13... Be6 {[%clk 0:01:30.9]} 14.
Nh6+ {[%clk 0:02:30.5]} 14... gxh6 {[%clk 0:00:36.6]} 15. Bxf6 {[%clk
0:02:29.8]} 15... Qd7 {[%clk 0:00:25.6]} 16. Qg3+ {[%clk 0:02:24.1]} 16... Bg4
{[%clk 0:00:22.4]} 17. h3 {[%clk 0:02:16.3]} 17... h5 {[%clk 0:00:14.7]} 18.
hxg4 {[%clk 0:02:13]} 18... hxg4 {[%clk 0:00:15.6]} 19. Qf4 {[%clk 0:02:04.6]}
1-0

[Event "*** SCC Grand Prix: Titled Tuesday Blitz"]
[Site "Chess.com"]
[Date "2020.07.14"]
[Round "1"]
[White "m_ezat"]
[Black "DonPreuss"]
[Result "1-0"]
[WhiteElo "2527"]
[BlackElo "2197"]
[TimeControl "180+1"]
[EndTime "10:04:41 PDT"]
[Termination "m_ezat won by resignation"]

1. d4 {[%clk 0:03:00.3]} 1... Nc6 {[%clk 0:02:56.6]} 2. Nf3 {[%clk 0:02:59.3]}
2... d6 {[%clk 0:02:56.1]} 3. c4 {[%clk 0:02:58.9]} 3... g6 {[%clk 0:02:54.6]}
4. d5 {[%clk 0:02:56.4]} 4... Ne5 {[%clk 0:02:54.1]} 5. Nxe5 {[%clk 0:02:55.7]}
5... dxe5 {[%clk 0:02:55]} 6. e4 {[%clk 0:02:55.2]} 6... Bg7 {[%clk 0:02:55.3]}
7. c5 {[%clk 0:02:54.6]} 7... Nf6 {[%clk 0:02:49]} 8. Bb5+ {[%clk 0:02:49.7]}
8... Bd7 {[%clk 0:02:48.3]} 9. Bxd7+ {[%clk 0:02:37.7]} 9... Qxd7 {[%clk
0:02:48.4]} 10. Nc3 {[%clk 0:02:38.2]} 10... O-O {[%clk 0:02:44.9]} 11. O-O
{[%clk 0:02:38.1]} 11... a6 {[%clk 0:02:35.2]} 12. Qb3 {[%clk 0:02:37.3]} 12...
Rab8 {[%clk 0:02:25.1]} 13. Bg5 {[%clk 0:02:34.6]} 13... Kh8 {[%clk 0:02:22.7]}
14. Rad1 {[%clk 0:02:32.2]} 14... h6 {[%clk 0:02:20.7]} 15. Bxf6 {[%clk
0:02:27.6]} 15... Bxf6 {[%clk 0:02:14.2]} 16. Qc4 {[%clk 0:02:27.8]} 16... Bg7
{[%clk 0:02:02.1]} 17. c6 {[%clk 0:02:27.4]} 17... bxc6 {[%clk 0:02:01.1]} 18.
dxc6 {[%clk 0:02:27.5]} 18... Qg4 {[%clk 0:02:00.5]} 19. h3 {[%clk 0:02:25.6]}
19... Qg5 {[%clk 0:01:56.7]} 20. b3 {[%clk 0:02:23.9]} 20... f5 {[%clk
0:01:52.2]} 21. Rd7 {[%clk 0:02:23.5]} 21... f4 {[%clk 0:01:46.8]} 22. f3 {[%clk
0:02:23.6]} 22... a5 {[%clk 0:01:08.2]} 23. Nd5 {[%clk 0:02:22.2]} 23... Bf6
{[%clk 0:00:45.7]} 24. Nxc7 {[%clk 0:02:21.3]} 24... Qh5 {[%clk 0:00:36.6]} 25.
Ne6 {[%clk 0:02:16.8]} 25... Rg8 {[%clk 0:00:34.7]} 26. c7 {[%clk 0:02:16.3]}
26... Rbc8 {[%clk 0:00:34.8]} 27. Rd8 {[%clk 0:02:16.2]} 27... g5 {[%clk
0:00:23.8]} 28. Rxg8+ {[%clk 0:02:15.2]} 28... Rxg8 {[%clk 0:00:23.7]} 29. Nd8
{[%clk 0:02:14]} 1-0

[Event "*** SCC Grand Prix: Titled Tuesday Blitz"]
[Site "Chess.com"]
[Date "2020.07.14"]
[Round "1"]
[White "llamalord42"]
[Black "Tash_Boy"]
[Result "0-1"]
[WhiteElo "2349"]
[BlackElo "2677"]
[TimeControl "180+1"]
[EndTime "10:04:43 PDT"]
[Termination "Tash_Boy won by resignation"]

1. e4 {[%clk 0:03:00.9]} 1... c5 {[%clk 0:02:59.6]} 2. Nf3 {[%clk 0:03:01.3]}
2... d6 {[%clk 0:02:59.7]} 3. Bb5+ {[%clk 0:03:00.9]} 3... Nd7 {[%clk
0:02:59.4]} 4. O-O {[%clk 0:03:00.3]} 4... a6 {[%clk 0:02:59.3]} 5. Bxd7+ {[%clk
0:02:59.9]} 5... Bxd7 {[%clk 0:02:59.1]} 6. d4 {[%clk 0:02:59.2]} 6... cxd4
{[%clk 0:02:58.9]} 7. Nxd4 {[%clk 0:02:59.4]} 7... Nf6 {[%clk 0:02:58.1]} 8. Re1
{[%clk 0:02:59.3]} 8... e5 {[%clk 0:02:56.5]} 9. Nb3 {[%clk 0:02:56.1]} 9... Be7
{[%clk 0:02:45.5]} 10. Nc3 {[%clk 0:02:53.5]} 10... h6 {[%clk 0:02:44.2]} 11. a4
{[%clk 0:02:51.8]} 11... O-O {[%clk 0:02:37.7]} 12. a5 {[%clk 0:02:51.8]} 12...
Rc8 {[%clk 0:02:33.8]} 13. Be3 {[%clk 0:02:51.1]} 13... Be6 {[%clk 0:02:33.1]}
14. Nd5 {[%clk 0:02:38.7]} 14... Nxd5 {[%clk 0:02:30.5]} 15. exd5 {[%clk
0:02:38.3]} 15... Bf5 {[%clk 0:02:31.1]} 16. c3 {[%clk 0:02:28.2]} 16... Qd7
{[%clk 0:02:28.4]} 17. Nd2 {[%clk 0:02:23.8]} 17... Bg6 {[%clk 0:02:26.3]} 18.
f4 {[%clk 0:02:17.4]} 18... exf4 {[%clk 0:02:22.8]} 19. Bxf4 {[%clk 0:02:17.5]}
19... Bf6 {[%clk 0:02:22.8]} 20. Ne4 {[%clk 0:02:15.7]} 20... Bxe4 {[%clk
0:02:06.3]} 21. Rxe4 {[%clk 0:02:16.6]} 21... Qf5 {[%clk 0:02:04.6]} 22. Rb4
{[%clk 0:02:08.9]} 22... Rfe8 {[%clk 0:01:59.2]} 23. Bxd6 {[%clk 0:02:04.4]}
23... Rcd8 {[%clk 0:01:57.2]} 24. Bg3 {[%clk 0:02:04.3]} 24... Rxd5 {[%clk
0:01:56.8]} 25. Qf1 {[%clk 0:01:44.9]} 25... Qd7 {[%clk 0:01:53.8]} 26. h3
{[%clk 0:01:43.2]} 26... Rd3 {[%clk 0:01:47.4]} 27. Rg4 {[%clk 0:01:36.9]} 27...
h5 {[%clk 0:01:43.7]} 0-1

[Event "*** SCC Grand Prix: Titled Tuesday Blitz"]
[Site "Chess.com"]
[Date "2020.07.14"]
[Round "1"]
[White "iaraldinho"]
[Black "garfield_pg"]
[Result "1-0"]
[WhiteElo "2549"]
[BlackElo "2218"]
[TimeControl "180+1"]
[EndTime "10:04:46 PDT"]
[Termination "iaraldinho won by resignation"]

1. e4 {[%clk 0:02:57.9]} 1... c5 {[%clk 0:02:59.3]} 2. Nf3 {[%clk 0:02:55]} 2...
a6 {[%clk 0:02:58.4]} 3. d4 {[%clk 0:02:53.7]} 3... cxd4 {[%clk 0:02:58.7]} 4.
Nxd4 {[%clk 0:02:54.6]} 4... Nf6 {[%clk 0:02:58.9]} 5. Nc3 {[%clk 0:02:49.5]}
5... e5 {[%clk 0:02:50]} 6. Nb3 {[%clk 0:02:49.1]} 6... Bb4 {[%clk 0:02:47]} 7.
Bd2 {[%clk 0:02:48.4]} 7... Nc6 {[%clk 0:02:46.4]} 8. Bd3 {[%clk 0:02:47.7]}
8... O-O {[%clk 0:02:47]} 9. O-O {[%clk 0:02:47.2]} 9... d5 {[%clk 0:02:47.6]}
10. exd5 {[%clk 0:02:46.4]} 10... Nxd5 {[%clk 0:02:48.5]} 11. Nxd5 {[%clk
0:02:46.1]} 11... Qxd5 {[%clk 0:02:49.1]} 12. Bxb4 {[%clk 0:02:45.3]} 12... Nxb4
{[%clk 0:02:50]} 13. Be2 {[%clk 0:02:38.5]} 13... Qxd1 {[%clk 0:02:43.6]} 14.
Bxd1 {[%clk 0:02:39.4]} 14... Bf5 {[%clk 0:02:31.8]} 15. c3 {[%clk 0:02:34.8]}
15... Nd3 {[%clk 0:02:31.6]} 16. Bc2 {[%clk 0:02:34.5]} 16... Rfd8 {[%clk
0:02:24.3]} 17. Rad1 {[%clk 0:02:25.4]} 17... e4 {[%clk 0:02:15.2]} 18. Nd4
{[%clk 0:02:18.9]} 18... Bg6 {[%clk 0:02:11.5]} 19. Bxd3 {[%clk 0:02:14.1]}
19... exd3 {[%clk 0:02:12.4]} 20. Rfe1 {[%clk 0:02:13.6]} 20... b5 {[%clk
0:02:10.6]} 21. g4 {[%clk 0:02:09.7]} 21... b4 {[%clk 0:02:09.9]} 22. Nc6 {[%clk
0:02:09.1]} 22... bxc3 {[%clk 0:01:59.2]} 23. Nxd8 {[%clk 0:02:07]} 23... h5
{[%clk 0:01:24.7]} 24. Re8+ {[%clk 0:02:01.9]} 24... Kh7 {[%clk 0:01:24]} 25.
bxc3 {[%clk 0:02:02]} 25... f5 {[%clk 0:01:03.9]} 26. Rf8 {[%clk 0:01:58.7]}
26... fxg4 {[%clk 0:01:01.4]} 27. Ne6 {[%clk 0:01:56.6]} 27... Ra7 {[%clk
0:01:00.7]} 28. Ng5+ {[%clk 0:01:50]} 28... Kh6 {[%clk 0:00:59.6]} 29. f4 {[%clk
0:01:49.7]} 29... gxf3 {[%clk 0:00:58.4]} 30. h4 {[%clk 0:01:49.6]} 1-0

[Event "*** SCC Grand Prix: Titled Tuesday Blitz"]
[Site "Chess.com"]
[Date "2020.07.14"]
[Round "1"]
[White "carlesdc96"]
[Black "51616516516"]
[Result "1-0"]
[WhiteElo "2706"]
[BlackElo "2370"]
[TimeControl "180+1"]
[EndTime "10:04:51 PDT"]
[Termination "carlesdc96 won by resignation"]

1. Nf3 {[%clk 0:02:59.2]} 1... Nf6 {[%clk 0:02:59.5]} 2. d4 {[%clk 0:02:56.8]}
2... g6 {[%clk 0:02:58.9]} 3. Nbd2 {[%clk 0:02:56.3]} 3... d5 {[%clk 0:02:57.6]}
4. b4 {[%clk 0:02:56]} 4... Bg7 {[%clk 0:02:56]} 5. Bb2 {[%clk 0:02:55.8]} 5...
O-O {[%clk 0:02:55.2]} 6. e3 {[%clk 0:02:55.4]} 6... b6 {[%clk 0:02:49.6]} 7. c4
{[%clk 0:02:52.6]} 7... dxc4 {[%clk 0:02:46.2]} 8. Bxc4 {[%clk 0:02:51]} 8...
Bb7 {[%clk 0:02:44]} 9. b5 {[%clk 0:02:49.2]} 9... a6 {[%clk 0:02:42.4]} 10. a4
{[%clk 0:02:48.9]} 10... axb5 {[%clk 0:02:40.7]} 11. axb5 {[%clk 0:02:49.8]}
11... Rxa1 {[%clk 0:02:40.3]} 12. Qxa1 {[%clk 0:02:50.7]} 12... c6 {[%clk
0:02:35]} 13. O-O {[%clk 0:02:43.8]} 13... cxb5 {[%clk 0:02:34.2]} 14. Bxb5
{[%clk 0:02:44.7]} 14... Nc6 {[%clk 0:02:31.3]} 15. Rc1 {[%clk 0:02:42.6]} 15...
Na5 {[%clk 0:02:28.7]} 16. Ba3 {[%clk 0:02:34.3]} 16... Nd5 {[%clk 0:02:17.7]}
17. Qb2 {[%clk 0:02:20.6]} 17... h6 {[%clk 0:02:01.3]} 18. h3 {[%clk 0:02:16]}
18... Qa8 {[%clk 0:01:51.8]} 19. e4 {[%clk 0:02:05.8]} 19... Nf4 {[%clk
0:01:51.1]} 20. Bxe7 {[%clk 0:02:05.2]} 20... Re8 {[%clk 0:01:46.8]} 21. Bd6
{[%clk 0:02:00.1]} 21... Ne6 {[%clk 0:00:20.3]} 22. Bxe8 {[%clk 0:01:59.1]}
22... Qxe8 {[%clk 0:00:21.2]} 23. Qxb6 {[%clk 0:01:58.2]} 1-0